bitfinex-derivatives/quotes_ETHF0:USTF0_20250726
["timestamp","ask_amount","ask_price","bid_price","bid_amount"]
[1753514976449,3.04362062,3745.0,3744.9,1.4571]
[1753514976643,3.04362062,3745.0,3744.9,1.1518]
[1753514977045,3.04362062,3745.0,3744.9,1.7533]
[1753514978954,3.29676843,3745.0,3744.9,1.7533]
[1753514980350,3.29882353,3745.0,3744.9,1.7533]
[1753514980852,1.58147,3744.4,3744.3,13.3674]
[1753514981251,1.58147,3744.4,3744.3,14.4323]
[1753514981456,0.82047,3744.4,3744.3,14.4323]
[1753514981656,0.53397,3744.4,3744.3,14.4323]
[1753514982954,2.30057,3744.4,3744.3,1.7533]
[1753514983152,3.04554954,3744.4,3744.3,1.7533]
[1753514983651,6.25334954,3744.4,3744.3,1.7533]
[1753514987162,3.04554954,3744.4,3744.3,1.7533]
[1753514988263,2.30057,3744.4,3744.3,1.7533]
[1753514991469,0.53397,3744.4,3744.3,1.7533]
[1753514993668,1.0475,3744.7,3744.3,1.7533]
[1753514993872,0.8204,3744.9,3744.8,1.7533]
[1753514994074,1.81722363,3744.9,3744.8,1.7533]
[1753514994267,2.32554797,3744.9,3744.8,1.7533]
[1753514994466,3.04464797,3744.9,3744.8,1.7533]
[1753515004282,2.3005,3744.9,3744.8,1.7533]
[1753515004482,3.04515346,3744.9,3744.8,1.7533]
[1753515007180,0.74465346,3744.9,3744.8,2.28722]
[1753515007479,0.5339,3745.0,3744.9,2.2587]
[1753515007674,1.27861848,3745.0,3744.9,2.2587]
[1753515007881,1.27861848,3745.0,3744.9,1.7248]
[1753515008178,1.56321848,3745.0,3744.9,1.7248]
[1753515008480,2.31391848,3745.0,3744.9,1.7248]
[1753515008980,2.81181848,3745.0,3744.9,1.7248]
[1753515009180,3.00041848,3745.0,3744.9,1.7248]
[1753515010674,3.00041848,3745.0,3744.9,2.2587]
[1753515011276,3.0000231,3745.0,3744.9,2.2587]
[1753515012283,2.2557,3745.0,3744.9,1.7248]
[1753515013782,2.2557,3745.0,3744.9,2.2587]
[1753515014482,2.2557,3745.0,3744.9,1.7248]
[1753515014776,2.2557,3745.0,3744.9,2.2587]
[1753515015876,1.7218,3745.0,3744.9,2.2587]
[1753515017087,2.25567,3745.2,3745.1,1.51257]
[1753515017380,2.99993072,3745.2,3745.1,1.7248]
[1753515017983,2.99993072,3745.2,3745.1,2.25867]
[1753515018282,2.46606072,3745.2,3745.1,2.25867]
[1753515018680,2.99992072,3745.2,3745.1,1.7248]
[1753515018985,2.46606072,3745.2,3745.1,2.25867]
[1753515019185,0.74426072,3745.2,3745.1,2.25867]
[1753515019381,4.2431,3745.5,3745.4,1.22863]
[1753515019582,4.98736008,3745.5,3745.4,2.25863]
[1753515019984,5.67386008,3745.5,3745.4,2.25863]
[1753515020180,6.20768008,3745.5,3745.4,1.7248]
[1753515022286,2.99988008,3745.5,3745.4,1.7248]
[1753515023686,2.25562,3745.5,3745.4,1.7248]
[1753515024892,2.25562,3745.5,3745.2,12.677]
[1753515024893,2.25565,3745.3,3745.2,12.677]
[1753515027090,2.25566,3745.2,3745.1,1.4262]
[1753515028091,1.0353,3745.5,3745.1,0.6948]
[1753515028296,2.25562,3745.5,3745.4,1.7248]
[1753515028499,2.99955705,3745.5,3745.4,1.7248]
[1753515030994,0.708,3745.3,3745.1,0.6098]
[1753515031196,2.28026,3745.2,3745.1,0.6098]
[1753515031499,2.28026,3745.2,3745.1,1.2635]
[1753515031797,2.28026,3745.2,3745.1,1.7489]
[1753515031995,1.24187,3745.1,3745.0,3.2078]
[1753515032200,1.2419,3744.9,3744.8,0.4513]
[1753515032398,2.2803,3744.9,3744.8,0.4513]
[1753515032594,2.2803,3744.9,3744.8,0.6537]
[1753515032794,2.2803,3744.9,3744.8,1.2635]
[1753515032995,2.2803,3744.9,3744.8,1.4643]
[1753515034199,2.2803,3744.9,3744.8,0.2024]
[1753515034394,2.2803,3744.9,3744.8,0.6537]
[1753515035094,2.2803,3744.9,3744.8,1.2635]
[1753515036102,2.2803,3744.9,3744.8,1.4643]
[1753515036496,2.2803,3744.9,3744.8,1.7489]
[1753515037200,3.02486138,3744.9,3744.8,1.7489]
[1753515037501,2.2803,3744.9,3744.8,1.7489]
[1753515037701,3.02485858,3744.9,3744.8,1.7489]
[1753515038398,2.2803,3744.9,3744.8,1.7489]
[1753515038596,3.02484577,3744.9,3744.8,1.7489]
[1753515042202,2.2803,3744.9,3744.8,1.7489]
[1753515044498,2.95728814,3744.9,3744.8,1.7489]
[1753515044694,3.70231742,3744.9,3744.8,1.7489]
[1753515044902,3.70231742,3744.9,3744.8,0.2024]
[1753515046508,1.24193,3744.7,3744.6,1.2635]
[1753515046710,3.02531158,3744.7,3744.6,1.2635]
[1753515047207,2.28033,3744.7,3744.6,1.2635]
[1753515047602,2.28033,3744.7,3744.3,12.676]
[1753515047603,1.24199,3744.3,3744.2,1.83159]
[1753515047807,2.28039,3744.3,3744.2,14.50759]
[1753515048408,2.28039,3744.3,3744.2,14.95889]
[1753515048910,1.7464,3744.3,3744.2,14.95889]
[1753515051005,2.28039,3744.3,3744.2,14.95889]
[1753515051204,2.28039,3744.3,3744.2,14.4249]
[1753515051405,2.28039,3744.3,3744.2,14.9599]
[1753515052509,2.28039,3744.3,3744.2,14.4259]
[1753515052710,2.28039,3744.3,3744.2,14.9599]
[1753515053214,2.28039,3744.3,3744.2,14.4259]
[1753515053514,1.7464,3744.3,3744.2,14.9599]
[1753515053709,2.28039,3744.3,3744.2,14.4259]
[1753515053911,1.7464,3744.3,3744.2,14.9599]
[1753515057221,2.28039,3744.3,3744.2,14.9599]
[1753515060507,1.7464,3744.3,3744.2,14.9599]
[1753515061107,0.53397,3744.4,3744.3,0.53399]
[1753515061313,1.57097,3744.4,3744.3,2.30059]
[1753515061514,1.77647,3744.4,3744.3,2.30059]
[1753515061810,2.26637,3744.4,3744.3,2.30059]
[1753515062020,2.26637,3744.4,3744.3,1.7666]
[1753515062319,2.26637,3744.4,3744.3,2.30059]
[1753515063119,1.7324,3744.4,3744.3,2.30059]
[1753515064215,2.26637,3744.4,3744.3,1.7666]
[1753515064420,1.7324,3744.4,3744.3,2.30059]
[1753515064819,2.26637,3744.4,3744.3,1.7666]
[1753515065224,2.26637,3744.4,3744.3,14.4436]
[1753515066423,3.01150381,3744.4,3744.3,14.4436]
[1753515067220,3.01150381,3744.4,3744.3,13.3897]
[1753515067712,3.01150381,3744.4,3744.3,14.4436]
[1753515068422,2.26637,3744.4,3744.3,14.4436]
[1753515070820,2.26637,3744.4,3744.3,14.97759]
[1753515071221,2.26637,3744.4,3744.3,14.4436]
[1753515071520,2.26637,3744.4,3744.3,14.97759]
[1753515071721,2.26637,3744.4,3744.3,14.4436]
[1753515072221,3.01174804,3744.4,3744.3,14.4436]
[1753515072818,3.01174804,3744.4,3744.3,14.97759]
[1753515073016,3.01174804,3744.4,3744.3,14.4436]
[1753515073216,3.01174804,3744.4,3744.3,14.97759]
[1753515074329,3.01174804,3744.4,3744.3,2.30059]
[1753515074526,3.01174804,3744.4,3744.3,14.97759]
[1753515074727,0.74537804,3744.4,3744.3,14.97759]
[1753515074927,1.7324,3744.9,3744.8,0.7127]
[1753515075222,3.01451149,3744.9,3744.8,1.7666]
[1753515075928,3.01451149,3744.9,3744.8,2.30052]
[1753515076127,2.48060149,3744.9,3744.8,2.30052]
[1753515076427,3.01450149,3744.9,3744.8,1.7666]
[1753515076926,3.01450149,3744.9,3744.8,2.30052]
[1753515077130,2.2663,3744.9,3744.8,2.30052]
[1753515077328,3.01464717,3744.9,3744.8,2.30052]
[1753515077630,3.01464717,3744.9,3744.8,1.7666]
[1753515077829,3.01464717,3744.9,3744.8,2.30052]
[1753515078030,3.01464717,3744.9,3744.8,1.7666]
[1753515078232,2.48074717,3744.9,3744.8,2.30052]
[1753515078630,2.02004717,3744.9,3744.8,2.30052]
[1753515079133,2.48074717,3744.9,3744.8,2.30052]
[1753515079433,2.48074717,3744.9,3744.8,14.97652]
[1753515080233,3.01464717,3744.9,3744.8,14.97652]
[1753515080632,2.48074717,3744.9,3744.8,14.97652]
[1753515083636,0.74834717,3744.9,3744.8,14.97652]
[1753515084128,1.037,3745.6,3745.5,1.97602]
[1753515084436,1.037,3745.6,3744.9,1.33473]
[1753515084437,0.6954,3745.8,3745.7,0.6773]
[1753515084635,1.19812372,3745.8,3745.7,1.97599]
[1753515084936,1.7324,3745.8,3745.7,1.97599]
[1753515086536,1.7324,3745.8,3745.7,1.4422]
[1753515087630,1.7324,3745.8,3745.7,1.71319]
[1753515087830,0.6954,3745.6,3745.2,0.6006]
[1753515088135,1.7324,3745.4,3745.3,12.8796]
[1753515088334,1.7324,3745.4,3745.3,13.8534]
[1753515089547,2.26623,3745.4,3745.3,13.8534]
[1753515091246,1.7324,3745.4,3745.3,13.8534]
[1753515091446,1.7324,3745.4,3745.3,14.38724]
[1753515091648,1.7324,3745.4,3745.3,14.1162]
[1753515093952,2.26623,3745.4,3745.3,14.1162]
[1753515094253,1.7324,3745.4,3745.3,14.65004]
[1753515096754,0.2963,3745.4,3745.3,14.65004]
[1753515096954,0.7105,3745.8,3745.7,1.64298]
[1753515097255,0.7105,3745.8,3745.7,1.92888]
[1753515097552,1.756,3745.8,3745.7,1.92888]
[1753515099151,1.3105,3746.1,3746.0,0.6533]
[1753515099455,2.05290653,3746.1,3746.0,1.92884]
[1753515099754,2.49840653,3746.1,3746.0,1.92884]
[1753515100552,0.74240653,3746.1,3746.0,2.60582814]
[1753515101052,4.9638,3746.7,3746.6,1.18696]
[1753515101254,5.70621739,3746.7,3746.6,14.61076]
[1753515101550,2.49841739,3746.7,3746.6,14.61076]
[1753515102346,2.49841739,3746.7,3746.6,14.0771]
[1753515102858,2.49841739,3746.7,3746.6,14.61076]
[1753515103052,2.49841739,3746.7,3746.6,14.0771]
[1753515103253,3.03205739,3746.7,3746.6,14.0771]
[1753515103652,2.49841739,3746.7,3746.6,14.0771]
[1753515105159,3.03205739,3746.7,3746.6,14.0771]
[1753515105858,3.03205739,3746.7,3746.6,13.8146]
[1753515106059,3.03205739,3746.7,3746.6,13.6505]
[1753515106258,2.49841739,3746.7,3746.6,13.6505]
[1753515106459,2.49841739,3746.7,3746.6,14.18416]
[1753515106649,0.3091,3746.4,3746.3,0.5777]
[1753515106855,1.756,3746.4,3746.3,13.4516]
[1753515107053,1.756,3746.4,3746.3,13.8112]
[1753515107254,2.49731239,3746.4,3746.3,14.6068]
[1753515107461,2.49731379,3746.4,3746.3,14.6068]
[1753515107761,1.756,3746.4,3746.3,14.6068]
[1753515108260,2.49739063,3746.4,3746.3,14.6068]
[1753515108558,1.756,3746.4,3746.3,14.6068]
[1753515109467,1.756,3746.4,3746.3,14.0731]
[1753515109657,2.28969,3746.4,3746.3,14.0731]
[1753515109857,2.28969,3746.4,3746.3,13.8112]
[1753515110062,2.28969,3746.4,3746.3,1.1322]
[1753515114567,1.756,3746.4,3746.3,1.6659]
[1753515115364,1.756,3746.4,3746.3,1.9278]
[1753515117271,1.04306,3746.6,3746.5,0.7486]
[1753515117464,1.98716,3746.6,3746.5,1.3941]
[1753515117765,2.28966,3746.6,3746.5,1.3941]
[1753515117969,1.756,3746.6,3746.5,1.92777]
[1753515118267,2.28966,3746.6,3746.5,1.3941]
[1753515121262,2.28966,3746.6,3746.5,1.92777]
[1753515121478,2.28966,3746.6,3746.5,1.3941]
[1753515122976,2.28966,3746.6,3746.5,1.1322]
[1753515123974,2.28966,3746.6,3746.5,1.66587]
[1753515124380,2.28966,3746.6,3746.5,1.1322]
[1753515127574,2.28966,3746.6,3746.5,1.66588]
[1753515127874,1.2524,3746.6,3746.5,1.92718]
[1753515128280,0.7546,3746.6,3746.5,1.92718]
[1753515128579,0.3091,3746.6,3746.5,1.92718]
[1753515128774,1.0439,3746.6,3746.5,1.92718]
[1753515128974,1.3281,3746.6,3746.5,1.92718]
[1753515129180,1.7138,3746.6,3746.5,1.92718]
[1753515133074,1.6915,3747.0,3746.9,1.95762]
[1753515133381,0.74305426,3747.0,3746.9,1.95762]
[1753515134678,1.0046,3747.1,3747.0,0.6642]
[1753515134870,1.4968,3747.1,3747.0,1.95761]
[1753515135674,1.6915,3747.1,3747.0,1.95761]
[1753515146988,1.6915,3747.1,3747.0,1.69631]
[1753515147794,1.6915,3747.1,3747.0,1.95761]
[1753515150586,2.2251,3747.1,3747.0,0.2057]
[1753515150787,0.9703,3746.9,3746.8,1.02163]
[1753515150985,1.7239,3746.9,3746.8,1.48793]
[1753515151586,1.7239,3746.9,3746.8,1.68823]
[1753515151988,1.7239,3746.9,3746.8,1.95153]
[1753515156296,1.7239,3746.9,3746.8,1.68823]
[1753515156598,1.7239,3746.9,3746.8,0.72473]
[1753515156794,1.7239,3746.9,3746.6,0.7632]
[1753515156995,1.7239,3746.6,3746.5,3.74148]
[1753515157191,1.7239,3746.6,3746.5,16.60058]
[1753515157393,2.25757,3746.6,3746.5,3.6958]
[1753515157597,1.7239,3746.6,3746.5,16.89748]
[1753515157793,1.7239,3746.6,3746.5,17.36378]
[1753515157992,1.7239,3746.6,3746.5,17.56408]
[1753515158498,1.7239,3746.6,3746.5,4.89608]
[1753515159102,1.7239,3746.6,3746.5,4.3624]
[1753515159801,1.7239,3746.6,3746.5,4.89608]
[1753515160301,1.7239,3746.6,3746.5,17.56408]
[1753515162412,1.7239,3746.6,3746.5,4.89608]
[1753515162614,1.7239,3746.6,3746.5,17.56408]
[1753515163711,1.21917,3746.6,3746.5,12.668]
[1753515164112,1.96274839,3746.6,3746.5,12.668]
[1753515164312,3.00105829,3746.6,3746.5,12.668]
[1753515164512,2.25757,3746.6,3746.5,12.668]
[1753515164714,3.00081239,3746.6,3746.5,12.668]
[1753515165218,2.25757,3746.6,3746.5,12.668]
[1753515165413,1.7239,3746.6,3746.5,13.20168]
[1753515165619,2.25757,3746.6,3746.5,12.668]
[1753515166218,0.53368,3746.5,3746.4,0.53369]
[1753515166514,0.6855,3746.2,3746.0,0.5986]
[1753515166712,0.6855,3746.2,3746.1,13.20174]
[1753515166907,0.6855,3746.2,3746.1,13.0237]
[1753515167108,1.21922,3746.2,3746.1,13.6223]
[1753515167318,2.25765,3746.0,3745.9,1.4179]
[1753515167617,2.25765,3746.0,3745.9,14.0859]
[1753515169019,1.7239,3746.0,3745.9,14.0859]
[1753515169818,1.7239,3746.0,3745.9,14.61967]
[1753515170118,1.7239,3746.0,3745.9,14.0859]
[1753515170415,2.25765,3746.0,3745.9,14.0859]
[1753515171021,1.7239,3746.0,3745.9,14.61967]
[1753515171717,1.7239,3746.4,3746.3,1.94911]
[1753515172021,1.2726,3746.7,3746.6,0.6532]
[1753515172223,1.2726,3746.7,3746.6,14.0864]
[1753515172422,1.80625,3746.7,3746.6,14.0864]
[1753515172611,1.7239,3746.7,3746.6,14.62007]
[1753515176323,1.7239,3746.7,3746.6,14.0864]
[1753515176621,2.25755,3746.7,3746.6,1.4154]
[1753515177026,2.25755,3746.7,3746.6,1.1536]
[1753515179224,3.00045675,3746.7,3746.6,1.1536]
[1753515182729,3.00045675,3746.7,3746.6,0.99]
[1753515182929,3.00045675,3746.7,3746.6,0.6931]
[1753515183329,3.00045675,3746.7,3746.6,0.9767]
[1753515183830,3.00045675,3746.7,3746.6,1.1404]
[1753515184722,2.25755,3746.7,3746.6,1.1404]
[1753515184923,3.00070147,3746.7,3746.6,1.1404]
[1753515197739,3.00070147,3746.7,3746.6,1.93607]
[1753515197935,0.74315147,3746.7,3746.6,1.93607]
[1753515198142,0.74315147,3746.7,3746.6,5.14387]
[1753515199238,0.018,3747.3,3747.2,1.1948]
[1753515199536,0.76242894,3747.3,3747.2,1.93248]
[1753515199739,0.76242894,3747.3,3747.2,2.60946814]
[1753515200241,0.76242894,3747.3,3747.2,1.93248]
[1753515201944,0.018,3747.3,3747.2,1.93248]
[1753515202440,0.018,3747.3,3747.2,2.60946814]
[1753515203441,0.018,3747.3,3747.2,1.93248]
[1753515209145,0.4803,3747.3,3747.2,1.93248]
[1753515209338,1.3607,3747.3,3747.2,1.93248]
[1753515209542,1.5492,3747.3,3747.2,1.93248]
[1753515209844,1.7393,3747.3,3747.2,1.93248]
[1753515212539,1.7393,3747.3,3747.2,13.0617]
[1753515212945,1.7393,3747.3,3747.2,13.59528]
[1753515213143,1.7393,3747.3,3747.2,14.61518]
[1753515216147,1.7393,3747.3,3747.2,14.0816]
[1753515217247,1.7393,3747.3,3747.2,14.61518]
[1753515222050,1.7339,3747.3,3747.2,14.61518]
[1753515222950,1.7339,3747.3,3747.2,1.94918]
[1753515223149,1.7339,3747.3,3747.2,14.61518]
[1753515228861,1.7339,3747.3,3747.2,14.35358]
[1753515229256,1.7339,3747.3,3747.2,13.82]
[1753515229962,1.7339,3747.3,3747.2,14.35358]
[1753515232555,1.7339,3747.3,3747.2,1.68758]
[1753515232754,1.7339,3747.3,3747.2,14.35358]
[1753515233561,2.26747,3747.3,3747.2,0.2041]
[1753515233764,3.01217635,3747.3,3747.2,12.665]
[1753515234263,2.47860635,3747.3,3747.2,13.19858]
[1753515234463,2.47859929,3747.3,3747.2,1.67648]
[1753515234665,2.47859929,3747.3,3747.2,14.34148]
[1753515235465,2.47859929,3747.3,3747.2,14.60398]
[1753515238469,3.01216929,3747.3,3747.2,13.8079]
[1753515238666,1.98346929,3747.3,3747.1,3.74139]
[1753515238866,2.26747,3747.3,3747.2,12.665]
[1753515239066,2.47858804,3747.3,3747.2,12.665]
[1753515239469,1.44988804,3747.3,3747.2,12.665]
[1753515239872,1.44988804,3747.3,3747.2,13.19858]
[1753515240173,2.47948804,3747.3,3747.2,14.35648]
[1753515240465,1.7348,3747.3,3747.2,14.61928]
[1753515240671,2.47944003,3747.3,3747.2,1.95328]
[1753515241265,2.47944003,3747.3,3747.2,14.61928]
[1753515241966,1.7348,3747.3,3747.2,14.61928]
[1753515242273,2.47942836,3747.3,3747.2,14.61928]
[1753515243173,3.01299836,3747.3,3747.2,14.0857]
[1753515243375,2.47942836,3747.3,3747.2,14.61928]
[1753515243574,2.47942836,3747.3,3747.2,1.95328]
[1753515243777,2.47942836,3747.3,3747.2,13.8229]
[1753515244076,2.27478,3747.2,3747.1,15.8728]
[1753515244373,3.01940836,3747.2,3747.1,3.2078]
[1753515244573,2.27481,3747.0,3746.9,12.665]
[1753515244779,2.27481,3747.0,3746.9,12.8598]
[1753515244974,2.27481,3747.0,3746.9,0.1948]
[1753515245173,1.24527,3746.6,3746.5,4.2021]
[1753515245473,2.27487,3746.6,3746.5,17.56438]
[1753515245666,3.01917057,3746.6,3746.5,16.7268]
[1753515245863,3.01917057,3746.6,3746.5,17.0307]
[1753515246072,2.48550057,3746.6,3746.5,17.56438]
[1753515246272,1.7412,3746.6,3746.5,17.56438]
[1753515246472,1.7412,3746.6,3746.5,17.82618]
[1753515246773,1.7412,3746.6,3746.5,14.61838]
[1753515247673,2.27487,3746.6,3746.5,12.666]
[1753515247969,0.7116,3746.4,3746.3,1.2241]
[1753515248171,1.24531,3746.3,3746.2,23.058]
[1753515248366,1.7412,3746.3,3746.2,36.72522]
[1753515248576,1.7412,3746.3,3746.2,37.01332]
[1753515248772,1.7412,3746.3,3746.2,36.4796]
[1753515249172,2.27491,3746.3,3746.2,36.4796]
[1753515249776,1.7412,3746.3,3746.2,37.01332]
[1753515250178,2.27491,3746.3,3746.2,36.4796]
[1753515250978,2.27491,3746.3,3746.2,23.5097]
[1753515251176,2.27491,3746.3,3746.2,35.725]
[1753515252073,2.27491,3746.3,3746.2,23.058]
[1753515252074,2.95189814,3746.3,3746.2,23.058]
[1753515252376,2.27498,3745.8,3745.7,1.1579]
[1753515252573,2.27498,3745.8,3745.7,12.667]
[1753515253173,2.27498,3745.8,3745.7,13.3956]
[1753515253374,1.7412,3745.8,3745.7,14.1512]
[1753515253580,1.7412,3745.8,3745.7,14.3587]
[1753515253975,1.7412,3745.8,3745.7,14.6205]
[1753515256185,1.7412,3745.8,3745.7,14.0867]
[1753515256389,2.27498,3745.8,3745.7,14.0867]
[1753515256686,1.7412,3745.8,3745.7,14.0867]
[1753515256880,2.27498,3745.8,3745.7,14.0867]
[1753515257278,1.7412,3745.8,3745.7,14.0867]
[1753515258182,1.7412,3745.8,3745.7,14.6205]
[1753515260485,1.7412,3745.8,3745.7,14.0867]
[1753515261485,2.27498,3745.8,3745.7,14.0867]
[1753515262288,2.27498,3745.8,3745.7,13.8249]
[1753515262489,1.7412,3745.8,3745.7,13.8249]
[1753515262689,2.27498,3745.8,3745.7,13.8249]
[1753515264089,2.27498,3745.8,3745.7,1.1579]
[1753515264290,2.27498,3745.8,3745.7,1.6917]
[1753515264489,2.27498,3745.8,3745.7,14.6235]
[1753515264891,2.27498,3745.8,3745.7,14.0897]
[1753515268492,2.27498,3745.8,3745.7,1.4197]
[1753515268792,2.27498,3745.8,3745.7,14.0897]
[1753515269793,2.27498,3745.8,3745.7,1.4197]
[1753515269993,2.27498,3745.8,3745.7,14.0897]
[1753515270493,2.27498,3745.8,3745.7,12.8648]
[1753515270694,2.27498,3745.8,3745.7,0.1948]
[1753515270895,1.20291,3745.6,3745.5,0.7897]
[1753515271089,2.21501,3745.6,3745.5,13.6234]
[1753515271297,1.20295,3745.3,3745.2,4.6232]
[1753515271496,2.21505,3745.3,3745.2,17.2932]
[1753515272197,2.21505,3745.3,3745.2,4.6232]
[1753515272497,2.21505,3745.3,3745.2,17.2932]
[1753515273591,2.21505,3745.3,3745.2,4.6232]
[1753515273788,2.21505,3745.3,3745.2,3.2078]
[1753515274496,2.21508,3745.1,3745.0,12.67]
[1753515275201,0.53392,3744.8,3744.7,0.9534]
[1753515275396,2.21512,3744.8,3744.7,13.8235]
[1753515275595,2.21512,3744.8,3744.7,1.1535]
[1753515275801,2.21512,3744.8,3744.7,13.8235]
[1753515280905,2.21512,3744.8,3744.7,1.1535]
[1753515281106,2.21512,3744.8,3744.7,13.8255]
[1753515283407,2.21512,3744.8,3744.7,1.1535]
[1753515283607,2.21512,3744.8,3744.7,13.8265]
[1753515284008,2.21504,3745.4,3745.3,0.6582]
[1753515284198,2.95953307,3745.4,3745.3,14.1004]
[1753515284400,2.95953286,3745.4,3745.3,14.1004]
[1753515289105,2.42569286,3745.4,3745.3,14.63425]
[1753515289304,0.74449286,3745.4,3745.3,15.31123814]
[1753515289709,3.2078,3745.7,3745.6,1.19201]
[1753515289910,3.9531535,3745.7,3745.6,1.94921]
[1753515290112,4.4869435,3745.7,3745.6,1.4154]
[1753515290408,4.9101435,3745.7,3745.6,1.4154]
[1753515290606,5.9780435,3745.7,3745.6,1.4154]
[1753515291610,6.1681435,3745.7,3745.6,1.4154]
[1753515293608,2.9603435,3745.7,3745.6,1.4154]
[1753515296905,2.9603435,3745.7,3745.6,1.9492]
[1753515297413,2.9603435,3745.7,3745.6,1.4154]
[1753515300310,2.9603435,3745.7,3745.6,1.1535]
[1753515300513,2.26343,3745.4,3745.3,0.3888]
[1753515300809,0.7033,3745.1,3745.0,0.3888]
[1753515301014,0.9893,3745.1,3745.0,13.0738]
[1753515301512,3.00979686,3745.1,3745.0,0.1932]
[1753515302507,1.0177,3744.9,3744.8,0.9593]
[1753515302712,2.2635,3744.9,3744.8,13.8389]
[1753515302912,1.22394,3744.6,3744.5,1.4169]
[1753515303120,2.26354,3744.6,3744.5,1.95086]
[1753515303405,2.26354,3744.6,3744.5,14.63686]
[1753515303612,1.7296,3744.6,3744.5,1.95086]
[1753515303916,1.7296,3744.6,3744.5,14.63686]
[1753515304308,1.7296,3744.6,3744.5,1.95086]
[1753515304515,1.7296,3744.6,3744.5,14.63586]
[1753515306619,1.7296,3744.6,3744.5,1.95086]
[1753515306819,1.7296,3744.6,3744.5,14.63586]
[1753515307522,2.26354,3744.6,3744.5,14.1019]
[1753515308222,1.7296,3744.6,3744.5,14.63586]
[1753515308518,1.7296,3744.6,3744.5,14.1019]
[1753515308712,1.7296,3744.6,3744.5,14.63586]
[1753515309822,1.7296,3744.6,3744.5,1.95086]
[1753515310021,1.7296,3744.6,3744.5,14.63486]
[1753515310323,2.26354,3744.6,3744.5,14.1009]
[1753515310715,1.7296,3744.6,3744.5,14.63486]
[1753515311312,1.7296,3744.6,3744.5,17.84266]
[1753515316126,2.26354,3744.6,3744.5,17.84266]
[1753515316326,1.7296,3744.6,3744.5,17.84266]
[1753515321636,2.26354,3744.6,3744.5,17.84266]
[1753515322234,1.7296,3744.6,3744.5,17.84266]
[1753515322439,2.26354,3744.6,3744.5,17.84266]
[1753515322639,1.7296,3744.6,3744.5,17.84266]
[1753515322939,2.26354,3744.6,3744.5,17.3087]
[1753515323138,1.7296,3744.6,3744.5,17.84266]
[1753515324743,1.7296,3744.6,3744.5,17.3087]
[1753515325440,2.26354,3744.6,3744.5,17.3087]
[1753515326541,1.7296,3744.6,3744.5,17.3087]
[1753515328441,2.26354,3744.6,3744.5,14.1009]
[1753515328639,2.26354,3744.6,3744.5,0.3888]
[1753515328848,1.22397,3744.4,3744.3,0.6973]
[1753515329045,1.22397,3744.4,3744.3,13.6662]
[1753515329248,1.4370594,3744.4,3744.3,13.8299]
[1753515329447,3.0106294,3744.4,3744.3,0.1932]
[1753515329643,1.22399,3744.2,3744.1,4.3627]
[1753515329849,2.28309,3744.2,3744.1,17.0387]
[1753515330149,1.7491,3744.2,3744.1,17.0387]
[1753515330849,1.7491,3744.2,3744.1,17.3012]
[1753515332744,2.28309,3744.2,3744.1,17.3012]
[1753515333248,1.7491,3744.2,3744.1,17.3012]
[1753515333644,2.28309,3744.2,3744.1,17.3012]
[1753515333845,1.7491,3744.2,3744.1,17.3012]
[1753515334049,2.28309,3744.2,3744.1,17.3012]
[1753515335152,2.28309,3744.2,3744.1,13.3733]
[1753515335341,2.28309,3744.2,3744.1,12.8692]
[1753515337153,3.02998194,3744.2,3744.1,12.8692]
[1753515337358,2.28309,3744.2,3744.1,13.4564]
[1753515337554,2.28309,3744.2,3744.1,13.8093]
[1753515337954,2.28309,3744.2,3744.1,1.1333]
[1753515338556,2.28309,3744.2,3744.1,13.8093]
[1753515343158,2.28309,3744.2,3744.1,1.1333]
[1753515343356,2.28309,3744.2,3744.1,13.8103]
[1753515345054,2.28309,3744.2,3744.1,14.0728]
[1753515349864,3.03125002,3744.2,3744.1,14.0728]
[1753515350057,2.28309,3744.2,3744.1,14.0728]
[1753515350564,3.03129976,3744.2,3744.1,14.0728]
[1753515353063,1.22292,3744.0,3743.9,1.1362]
[1753515353264,2.28202,3744.0,3743.9,13.8132]
[1753515353764,2.28202,3744.0,3743.9,14.0757]
[1753515356569,2.28202,3744.0,3743.9,1.1362]
[1753515356764,2.28202,3744.0,3743.9,13.8132]
[1753515357271,3.03086478,3744.0,3743.9,13.8132]
[1753515358561,3.03086478,3744.0,3743.9,14.0757]
[1753515358866,0.7624,3744.2,3743.9,16.5323]
[1753515359168,0.74901488,3744.1,3744.0,2.07568814]
[1753515360270,1.28302488,3744.1,3744.0,2.07568814]
[1753515360776,1.71132488,3744.1,3744.0,2.07568814]
[1753515361168,1.71132488,3744.1,3744.0,1.3987]
[1753515361775,1.99722488,3744.1,3744.0,1.3987]
[1753515361980,2.81102488,3744.1,3744.0,1.3987]
[1753515362176,3.00892488,3744.1,3744.0,1.3987]
[1753515366679,3.00892488,3744.1,3744.0,1.1362]
[1753515367081,3.00892488,3744.1,3744.0,0.1961]
[1753515367481,1.24264,3743.9,3743.8,14.03725749]
[1753515367783,2.25994,3743.9,3743.8,14.30005749]
[1753515368483,3.0092757,3743.9,3743.8,14.30005749]
[1753515372283,3.0092757,3743.9,3743.8,0.60615749]
[1753515372480,3.0092757,3743.9,3743.8,13.28315749]
[1753515372888,3.0092757,3743.9,3743.8,14.03725749]
[1753515373575,3.0092757,3743.9,3743.8,0.19765749]
[1753515374282,3.0092757,3743.9,3743.8,0.40635749]
[1753515374482,3.0092757,3743.9,3743.8,1.62305749]
[1753515374986,0.7493357,3743.9,3743.8,5.36490749]
[1753515375680,0.7493357,3743.9,3743.8,4.83085749]
[1753515375884,0.53404,3743.9,3743.8,4.83085749]
[1753515376080,0.53403,3744.0,3743.9,1.4254]